Workbook

Sheet Sheet1
A1: Month | B1: Solar Panel Market (% of Homes)
A2: 2023-04-01 | B2: 8.00%
A3: 2023-05-01 | B3: =1.01*B2 -> 8.08%
A4: 2023-06-01 | B4: =1.01*B3 -> 8.16%
A5: 2023-07-01 | B5: =1.01*B4 -> 8.24%
A6: 2023-08-01 | B6: =1.01*B5 -> 8.32%
A7: 2023-09-01 | B7: =1.01*B6 -> 8.41%
A8: 2023-10-01 | B8: =1.01*B7 -> 8.49%
A9: 2023-11-01 | B9: =1.01*B8 -> 8.58%
A10: 2023-12-01 | B10: =1.01*B9 -> 8.66%
A11: 2024-01-01 | B11: =1.01*B10 -> 8.75%
A12: 2024-02-01 | B12: =1.01*B11 -> 8.84%
A13: 2024-03-01 | B13: =1.01*B12 -> 8.93%
A14: 2024-04-01 | B14: =1.01*B13 -> 9.01%
A15: 2024-05-01 | B15: =1.01*B14 -> 9.10%
A16: 2024-06-01 | B16: =1.01*B15 -> 9.20%
A17: 2024-07-01 | B17: =1.01*B16 -> 9.29%
A18: 2024-08-01 | B18: =1.01*B17 -> 9.38%
A19: 2024-09-01 | B19: =1.01*B18 -> 9.47%
A20: 2024-10-01 | B20: =1.01*B19 -> 9.57%
A21: 2024-11-01 | B21: =1.01*B20 -> 9.66%
A22: 2024-12-01 | B22: =1.01*B21 -> 9.76%
A23: 2025-01-01 | B23: =1.01*B22 -> 9.86%
A24: 2025-02-01 | B24: =1.01*B23 -> 9.96%
A25: 2025-03-01 | B25: =1.01*B24 -> 10.06%
A26: 2025-04-01 | B26: =1.01*B25 -> 10.16%
A27: 2025-05-01 | B27: =1.01*B26 -> 10.26%
A28: 2025-06-01 | B28: =1.01*B27 -> 10.36%
A29: 2025-07-01 | B29: =1.01*B28 -> 10.47%
A30: 2025-08-01 | B30: =1.01*B29 -> 10.57%
A31: 2025-09-01 | B31: =1.01*B30 -> 10.68%
A32: 2025-10-01 | B32: =1.01*B31 -> 10.78%
A33: 2025-11-01 | B33: =1.01*B32 -> 10.89%
A34: 2025-12-01 | B34: =1.01*B33 -> 11.00%
A35: 2026-01-01 | B35: =1.01*B34 -> 11.11%
